fUSD/lending_fUSD_20260406
["ID","MTS","AMOUNT","RATE_DAILY","PERIOD"]
[419885980,1775467833978,-609.8984744,8.825e-05,2]
[419885984,1775467837637,-219.28053588,8.824e-05,2]
[419885985,1775467837647,-136.42951912,8.825e-05,2]
[419885986,1775467837748,-2629.18148909,8.825e-05,2]
[419885987,1775467837965,-38421.93863558,8.825e-05,2]
[419885988,1775467837975,-250.0,8.825e-05,2]
[419885989,1775467837985,-350.22732689,8.826e-05,2]
[419885990,1775467837994,-466.98,8.827e-05,2]
[419885991,1775467838004,-150.0,8.827e-05,2]
[419885992,1775467838014,-150.0,8.827e-05,2]
[419885993,1775467838023,-150.0,9.153e-05,2]
[419885994,1775467838033,-150.0,9.153e-05,2]
[419885995,1775467838043,-150.0,9.153e-05,2]
[419885996,1775467838052,-959.09,9.153e-05,2]
[419885997,1775467838062,-999.99,9.153e-05,2]
[419885998,1775467838073,-9999.99,9.153e-05,2]
[419885999,1775467838083,-150.99,9.153e-05,2]
[419886000,1775467838092,-1173.57,9.153e-05,2]
[419886001,1775467838102,-150.99,9.153e-05,2]
[419886002,1775467838112,-299.99,9.153e-05,2]
[419886003,1775467838121,-466.98,9.154e-05,2]
[419886004,1775467838131,-466.98,9.48e-05,2]
[419886005,1775467838141,-569.0,9.706e-05,2]
[419886006,1775467838151,-420.0,9.706e-05,2]
[419886007,1775467838161,-255.0,9.706e-05,2]
[419886008,1775467838171,-250.0,9.706e-05,2]
[419886009,1775467838181,-290.25550646,9.706e-05,2]
[419886010,1775467838191,-466.98,9.807e-05,2]
[419886011,1775467838200,-150.0,0.0001,2]
[419886012,1775467838210,-466.98,0.00010134,2]
[419886013,1775467838220,-1237.59,0.00010274,14]
[419886014,1775467838230,-500.0,0.00010288,2]
[419886015,1775467838240,-500.0,0.00010288,2]
[419886016,1775467838251,-500.0,0.00010288,2]
[419886017,1775467838260,-500.0,0.00010288,2]
[419886018,1775467838269,-500.0,0.00010288,2]
[419886019,1775467838279,-500.0,0.00010288,2]
[419886020,1775467838289,-200.0,0.00010288,2]
[419886021,1775467838299,-500.0,0.00010288,2]
[419886022,1775467838310,-151.0,0.00010288,2]
[419886023,1775467838319,-500.0,0.00010288,2]
[419886024,1775467838329,-151.0,0.00010288,2]
[419886025,1775467838339,-500.0,0.00010288,2]
[419886026,1775467838349,-151.0,0.00010288,2]
[419886027,1775467838358,-500.0,0.00010288,2]
[419886028,1775467838368,-151.0,0.00010288,2]
[419886029,1775467838377,-151.0,0.00010288,2]
[419886030,1775467838387,-151.0,0.00010288,2]
[419886031,1775467838396,-151.0,0.00010288,2]
[419886033,1775467838406,-151.0,0.00010288,2]
[419886034,1775467838416,-151.0,0.00010288,2]
[419886035,1775467838425,-180.68084536,0.00010288,2]
[419886036,1775467838434,-1386.78395259,0.00010288,2]
[419886037,1775467838443,-500.0,0.00010288,2]
[419886038,1775467838452,-138148.45,0.00010294,2]
[419886039,1775467838462,-466.98,0.00010461,2]
[419886040,1775467838472,-281.4,0.00010461,2]
[419886041,1775467838482,-281.4,0.00010461,2]
[419886042,1775467838491,-281.4,0.00010461,2]
[419886043,1775467838501,-281.4,0.00010461,2]
[419886044,1775467838510,-281.4,0.00010461,2]
[419886045,1775467838520,-281.4,0.00010461,2]
[419886046,1775467838529,-281.4,0.00010461,2]
[419886047,1775467838538,-281.4,0.00010461,2]
[419886048,1775467838548,-281.4,0.00010461,2]
[419886049,1775467838558,-500.0,0.00010562,2]
[419886050,1775467838568,-2933.8,0.00010562,2]
[419886051,1775467838577,-2933.8,0.00010562,2]
[419886052,1775467838586,-2933.8,0.00010562,2]
[419886053,1775467838596,-587.0,0.00010677,2]
[419886054,1775467838607,-433.0,0.00010677,2]
[419886055,1775467838617,-466.98,0.00010788,2]
[419886056,1775467838627,-500.0,0.00010836,2]
[419886057,1775467838637,-200.0,0.00010836,2]
[419886058,1775467838647,-12608.12105321,0.00011099,2]
[419886059,1775467838657,-12608.12105319,0.00011099,2]
[419886060,1775467838666,-500.0,0.0001111,2]
[419886061,1775467838676,-466.98,0.00011115,2]
[419886062,1775467838686,-500.0,0.00011384,2]
[419886063,1775467838695,-200.0,0.00011384,2]
[419886064,1775467838704,-167.2365,0.000114,2]
[419886065,1775467838714,-466.98,0.00011442,2]
[419886066,1775467838723,-197.17,0.00011494,2]
[419886067,1775467838733,-1202.72,0.00011507,2]
[419886068,1775467838742,-12608.12105319,0.0001157,2]
[419886069,1775467838752,-634.23081963,0.00011658,2]
[419886070,1775467838762,-823.0,0.00011745,2]
[419886071,1775467838772,-736.0,0.00011745,2]
[419886072,1775467838782,-466.98,0.00011769,2]
[419886073,1775467838792,-553.6739728,0.00011868,2]
[419886074,1775467838802,-1924.0899,0.0001189,2]
[419886075,1775467838811,-150.0,0.00011915,2]
[419886076,1775467838822,-200.0,0.00011932,2]
[419886077,1775467838832,-466.98,0.00012096,2]
[419886078,1775467838843,-12608.12105319,0.00012174,2]
[419886079,1775467838852,-1069.49567053,0.00012181,2]
[419886080,1775467838862,-1929.77869717,0.00012323,2]
[419886081,1775467838871,-466.98,0.00012423,2]
[419886082,1775467838881,-16990.18,0.00012423,2]
[419886083,1775467838891,-500.0,0.00012423,2]
[419886084,1775467838900,-163.26,0.00012423,2]
[419886085,1775467838911,-1600.0,0.00012423,2]
[419886086,1775467838921,-200.0,0.0001248,2]
[419886087,1775467838931,-2500.0,0.00012599,2]
[419886088,1775467838942,-5491.6129,0.00012599,2]
[419886089,1775467838953,-14942.40398542,0.00012599,2]
[419886090,1775467838963,-161.51032015,0.000126,2]
[419886091,1775467838973,-234.96349068,0.000126,2]
[419886092,1775467838984,-2241.26589346,0.000126,2]
[419886093,1775467838994,-5000.0,0.00012655,2]
[419886094,1775467839003,-235.44785124,0.00012673,2]
[419886095,1775467839014,-500.0,0.00012673,2]
[419886096,1775467839024,-500.0,0.00012673,2]
[419886097,1775467839034,-500.62896533,0.00012673,2]
[419886098,1775467839044,-549.675327,0.00012673,2]
[419886099,1775467839055,-500.0,0.00012673,2]
[419886100,1775467839065,-500.0,0.00012673,2]
[419886101,1775467839074,-500.0,0.00012673,2]
[419886102,1775467839084,-501.43135783,0.00012673,2]
[419886103,1775467839093,-341.21474486,0.00012673,2]
[419886104,1775467839103,-500.0,0.00012673,2]
[419886105,1775467839113,-167.73939669,0.00012673,2]
[419886106,1775467839123,-500.29772521,0.00012673,2]
[419886107,1775467839134,-500.0,0.00012673,2]
[419886108,1775467839143,-170.09504983,0.00012673,2]
[419886109,1775467839154,-500.0,0.00012673,2]
[419886110,1775467839164,-166.15891761,0.00012673,2]
[419886111,1775467839174,-500.0,0.00012673,2]
[419886112,1775467839184,-500.17694496,0.00012673,2]
[419886113,1775467839194,-500.0,0.00012673,2]
[419886114,1775467839205,-500.0,0.00012673,2]
[419886115,1775467839215,-500.0,0.00012673,2]
[419886116,1775467839227,-500.0,0.00012673,2]
[419886117,1775467839239,-500.0,0.00012673,2]
[419886118,1775467839249,-169.62572437,0.00012673,2]
[419886119,1775467839260,-164.42551869,0.00012673,2]
[419886120,1775467839270,-194.18662975,0.0001269,2]
[419886121,1775467839281,-500.0,0.00012697,2]
[419886122,1775467839291,-500.0,0.00012697,2]
[419886123,1775467839301,-500.0,0.00012697,2]
[419886124,1775467839310,-528.63706167,0.00012697,2]
[419886125,1775467839320,-500.0,0.00012697,2]
[419886126,1775467839330,-500.0,0.00012697,2]
[419886127,1775467839340,-495.96716556,0.00012697,2]
[419886128,1775467839350,-500.0,0.00012697,2]
[419886129,1775467839360,-528.63706167,0.00012697,2]
[419886130,1775467839370,-500.0,0.00012697,2]
[419886131,1775467839379,-500.0,0.00012697,2]
[419886132,1775467839389,-500.0,0.00012697,2]
[419886133,1775467839399,-500.0,0.00012697,2]
[419886134,1775467839408,-500.0,0.00012697,2]
[419886135,1775467839418,-528.63706167,0.00012697,2]
[419886136,1775467839428,-500.0,0.00012697,2]
[419886137,1775467839439,-500.0,0.00012697,2]
[419886138,1775467839448,-528.63706167,0.00012697,2]
[419886139,1775467839458,-500.0,0.00012697,2]
[419886140,1775467839468,-397.77015442,0.00012697,2]
[419886141,1775467839477,-500.0,0.00012697,2]
[419886142,1775467839487,-483.36103957,0.00012697,2]
[419886143,1775467839496,-500.0,0.00012697,2]
[419886144,1775467839506,-528.63706167,0.00012697,2]
[419886145,1775467839515,-500.0,0.00012697,2]
[419886146,1775467839525,-500.0,0.00012697,2]
[419886147,1775467839535,-500.0,0.00012697,2]
[419886148,1775467839544,-528.63706167,0.00012697,2]
[419886149,1775467839554,-528.63706167,0.00012697,2]
[419886150,1775467839563,-500.0,0.00012697,2]
[419886152,1775467839573,-500.0,0.00012697,2]
[419886153,1775467839583,-500.0,0.00012697,2]
[419886154,1775467839592,-528.63706167,0.00012697,2]
[419886155,1775467839602,-528.63706167,0.00012697,2]
[419886156,1775467839612,-500.0,0.00012697,2]
[419886157,1775467839622,-500.0,0.00012697,2]
[419886158,1775467839631,-500.0,0.00012697,2]
[419886159,1775467839641,-528.63706167,0.00012697,2]
[419886160,1775467839650,-500.0,0.00012697,2]
[419886161,1775467839659,-528.63706167,0.00012697,2]
[419886162,1775467839668,-244.37066668,0.00012697,2]
[419886163,1775467839678,-448.05025621,0.00012697,2]
[419886164,1775467839687,-528.63706167,0.00012697,2]
[419886165,1775467839697,-500.0,0.00012697,2]
[419886166,1775467839706,-528.63706167,0.00012697,2]
[419886167,1775467839716,-500.0,0.00012697,2]
[419886168,1775467839726,-528.63706167,0.00012697,2]
[419886169,1775467839736,-500.0,0.00012697,2]
[419886170,1775467839746,-528.63706167,0.00012697,2]
[419886171,1775467839755,-500.0,0.00012697,2]
[419886172,1775467839764,-528.63706167,0.00012697,2]
[419886173,1775467839774,-500.0,0.00012697,2]
[419886176,1775467839783,-528.63706167,0.00012697,2]
[419886178,1775467839793,-500.0,0.00012697,2]
[419886180,1775467839802,-528.63706167,0.00012697,2]
[419886182,1775467839812,-500.0,0.00012697,2]
[419886184,1775467839822,-528.63706167,0.00012697,2]
[419886186,1775467839831,-500.0,0.00012697,2]
[419886189,1775467839841,-528.63706167,0.00012697,2]
[419886191,1775467839851,-500.0,0.00012697,2]
[419886193,1775467839860,-528.63706167,0.00012697,2]
[419886195,1775467839871,-528.63706167,0.00012697,2]
[419886197,1775467839880,-500.0,0.00012697,2]
[419886199,1775467839889,-528.63706167,0.00012697,2]
[419886201,1775467839899,-500.0,0.00012697,2]
[419886203,1775467839908,-528.63706167,0.00012697,2]
[419886205,1775467839918,-500.0,0.00012697,2]
[419886207,1775467839928,-528.63706167,0.00012697,2]
[419886209,1775467839938,-500.0,0.00012697,2]
[419886211,1775467839947,-528.63706167,0.00012697,2]
[419886213,1775467839957,-528.63706167,0.00012697,2]
[419886215,1775467839967,-500.0,0.00012697,2]
[419886217,1775467839977,-528.63706167,0.00012697,2]
[419886218,1775467839986,-528.63706167,0.00012697,2]
[419886219,1775467839995,-528.63706167,0.00012697,2]
[419886220,1775467840005,-528.63706167,0.00012697,2]
[419886221,1775467840015,-528.63706167,0.00012697,2]
[419886222,1775467840024,-528.63706167,0.00012697,2]
[419886223,1775467840033,-528.63706167,0.00012697,2]
[419886224,1775467840043,-528.63706167,0.00012697,2]
[419886225,1775467840052,-528.63706167,0.00012697,2]
[419886226,1775467840062,-528.63706167,0.00012697,2]
[419886227,1775467840071,-528.63706167,0.00012697,2]
[419886228,1775467840080,-528.63706167,0.00012697,2]
[419886229,1775467840089,-528.63706167,0.00012697,2]
[419886230,1775467840099,-528.63706167,0.00012697,2]
[419886231,1775467840108,-528.63706167,0.00012697,2]
[419886232,1775467840118,-528.63706167,0.00012697,2]
[419886233,1775467840127,-528.63706167,0.00012697,2]
[419886234,1775467840137,-528.63706167,0.00012697,2]
[419886235,1775467840146,-528.63706167,0.00012697,2]
[419886236,1775467840155,-528.63706167,0.00012697,2]
[419886237,1775467840164,-528.63706167,0.00012697,2]
[419886238,1775467840173,-528.63706167,0.00012697,2]
[419886239,1775467840183,-528.63706167,0.00012697,2]
[419886240,1775467840191,-528.63706167,0.00012697,2]
[419886241,1775467840201,-528.63706167,0.00012697,2]
[419886242,1775467840210,-528.63706167,0.00012697,2]
[419886243,1775467840219,-528.63706167,0.00012697,2]
[419886244,1775467840228,-528.63706167,0.00012697,2]
[419886245,1775467840238,-528.63706167,0.00012697,2]
[419886246,1775467840247,-528.63706167,0.00012697,2]
[419886247,1775467840256,-528.63706167,0.00012697,2]
[419886248,1775467840265,-528.63706167,0.00012697,2]
[419886249,1775467840275,-500.0,0.00012697,2]
[419886250,1775467840284,-528.63706167,0.00012697,2]
[419886251,1775467840293,-528.63706167,0.00012697,2]
[419886252,1775467840302,-528.63706167,0.00012697,2]
[419886253,1775467840311,-528.63706167,0.00012697,2]
[419886254,1775467840321,-1158.74,0.00012699,2]
[419886255,1775467840330,-643984.97909222,0.000127,2]
[419886256,1775467840359,-669.3,0.000127,2]
[419886264,1775467840927,-150.0,0.00011912,2]
[419886265,1775467840941,-9342.149529,0.000127,2]
[419886266,1775467840958,-522.9232407,0.000127,2]
[419886267,1775467840975,-512.0,0.000127,2]
[419886268,1775467840993,-2851.43843768,0.000127,2]
[419886269,1775467841011,-509.65562623,0.000127,2]
[419886270,1775467841050,-841607.55407417,0.000127,2]
[419886271,1775467841064,-186.4537,0.000127,2]
[419886272,1775467841078,-900.0,0.000127,4]
[419886273,1775467841093,-300.0,0.000127,4]
[419886274,1775467841107,-12608.12105319,0.00012778,2]
[419886275,1775467841121,-1800.0,0.000128,4]
[419886276,1775467841136,-600.0,0.000128,4]
[419886277,1775467841151,-1929.77869713,0.00012834,2]
[419886278,1775467841167,-2700.0,0.000129,4]
[419886279,1775467841183,-900.0,0.000129,4]
[419886280,1775467841197,-1252.0,0.00012918,2]
[419886281,1775467841212,-1152.0,0.00012919,2]
[419886282,1775467841227,-14942.40398534,0.00012955,2]
[419886283,1775467841242,-1158.74,0.00012973,2]
[419886284,1775467841258,-250.0,0.00013,2]
[419886285,1775467841273,-1000.0,0.00013022,2]
[419886286,1775467841287,-200.0,0.00013028,2]
[419886287,1775467841302,-500.0,0.000131,2]
[419886288,1775467841317,-506.99997,0.000131,2]
[419886289,1775467841332,-33024.725,0.0001312,2]
[419886290,1775467841346,-1000.0,0.00013121,2]
[419886291,1775467841361,-500.95520336,0.00013221,2]
[419886292,1775467841376,-461.10773956,0.00013221,2]
[419886293,1775467841391,-503.42744374,0.00013221,2]
[419886294,1775467841405,-1000.0,0.00013221,2]
[419886295,1775467841419,-808.57923412,0.00013221,2]
[419886296,1775467841434,-1000.0,0.00013221,2]
[419886297,1775467841449,-500.25334159,0.00013221,2]
[419886298,1775467841466,-1000.0,0.00013221,2]
[419886299,1775467841479,-304.93834689,0.00013221,2]
[419886300,1775467841494,-500.0,0.00013221,2]
[419886301,1775467841508,-1000.0,0.00013221,2]
[419886302,1775467841523,-500.27586957,0.00013221,2]
[419886303,1775467841538,-1000.0,0.00013221,2]
[419886304,1775467841553,-1158.74,0.00013247,2]
[419886305,1775467841567,-1209.06,0.00013298,2]
[419886306,1775467841582,-14942.40398534,0.0001331,2]
[419886307,1775467841597,-1929.77869713,0.00013345,2]
[419886308,1775467841611,-12608.12105319,0.00013383,2]
[419886309,1775467841625,-3240.0,0.00013425,2]
[419886310,1775467841639,-150.0,0.00013425,2]
[419886311,1775467841654,-1371.0519723,0.00013448,2]
[419886312,1775467841668,-1158.74,0.00013521,2]
[419886313,1775467841682,-150.0,0.00013601,2]
[419886314,1775467841696,-150.0,0.00013607,2]
[419886315,1775467841712,-14942.40398534,0.00013666,2]
[419886316,1775467841726,-150.0,0.00013699,2]
[419886317,1775467841741,-150.0,0.00013699,2]
[419886318,1775467841756,-150.0,0.00013699,2]
[419886319,1775467841770,-1460.36,0.00013699,2]
[419886320,1775467841784,-248.328847,0.00013707,7]
[419886321,1775467841800,-209.5329,0.00013707,7]
[419886322,1775467841814,-177.858597,0.00013707,7]
[419886323,1775467841829,-320.111404,0.00013726,7]
[419886324,1775467841843,-160.0,0.00013726,7]
[419886325,1775467841858,-217.4398,0.00013726,7]
[419886326,1775467841873,-274.879601,0.00013726,7]
[419886327,1775467841888,-450.108964,0.00013741,2]
[419886328,1775467841903,-343.957284,0.00013741,7]
[419886329,1775467841917,-1544.24672784,0.00013768,2]
[419886330,1775467841933,-204.26825693,0.00013768,2]
[419886331,1775467841947,-1500.0,0.00013768,2]
[419886332,1775467841961,-1500.0,0.00013768,2]
[419886333,1775467841976,-511.33728453,0.00013768,2]
[419886334,1775467841990,-1158.74,0.00013795,2]
[419886335,1775467842005,-3000.0,0.00013808,2]
[419886336,1775467842019,-1929.77869713,0.00013856,2]
[419886337,1775467842034,-1500.0,0.00013923,2]
[419886338,1775467842049,-150.0,0.00013973,2]
[419886339,1775467842063,-150.0,0.00013973,2]
[419886340,1775467842078,-150.0,0.00013973,2]
[419886341,1775467842093,-1600.0,0.00013976,2]
[419886342,1775467842108,-12608.12105319,0.00013987,2]
[419886343,1775467842122,-855.85192254,0.00014006,2]
[419886344,1775467842137,-14942.40398534,0.00014022,2]
[419886345,1775467842150,-1158.74,0.00014069,2]
[419886346,1775467842165,-1500.0,0.00014082,2]
[419886347,1775467842180,-207.8792,0.000141,2]
[419886348,1775467842193,-500.0,0.00014162,2]
[419886349,1775467842208,-160.0,0.00014198,2]
[419886350,1775467842223,-160.0,0.00014198,2]
[419886351,1775467842238,-1613.0,0.00014211,2]
[419886352,1775467842252,-2129.0,0.00014215,2]
[419886353,1775467842267,-150.0,0.00014247,2]
[419886354,1775467842282,-150.0,0.00014247,2]
[419886355,1775467842296,-150.0,0.00014247,2]
[419886357,1775467842310,-234.96349068,0.0001425,2]
[419886358,1775467842325,-2000.0,0.00014316,2]
[419886359,1775467842339,-1500.0,0.00014316,2]
[419886360,1775467842355,-1158.74,0.00014343,2]
[419886362,1775467842369,-1929.77869713,0.00014367,2]
[419886364,1775467842385,-14942.40398534,0.00014377,2]
[419886366,1775467842398,-2811.0,0.000144,2]
[419886367,1775467842412,-154.4710574,0.000144,2]
[419886368,1775467842426,-150.0,0.000144,2]
[419886369,1775467842441,-150.0,0.000144,2]
[419886371,1775467842455,-150.0,0.000144,2]
[419886373,1775467842469,-150.0,0.000144,2]
[419886375,1775467842484,-150.0,0.000144,2]
[419886376,1775467842500,-296.508819,0.00014412,7]
[419886377,1775467842514,-204.594983,0.00014428,2]
[419886379,1775467842529,-163.26,0.00014493,2]
[419886381,1775467842544,-12608.12105319,0.00014591,2]
[419886383,1775467842558,-1158.76,0.00014617,2]
[419886384,1775467842573,-162.66,0.00014653,2]
[419886385,1775467842588,-10257.51294978,0.00014665,2]
[419886386,1775467842602,-152.0,0.0001467,3]
[419886387,1775467842617,-500.0,0.00014673,2]
[419886388,1775467842631,-501.6002768,0.00014673,2]
[419886389,1775467842645,-500.0,0.00014673,2]
[419886390,1775467842660,-500.0,0.00014673,2]
[419886391,1775467842674,-500.0,0.00014673,2]
[419886392,1775467842688,-500.0,0.00014673,2]
[419886393,1775467842702,-501.91295738,0.00014673,2]
[419886394,1775467842716,-501.68959435,0.00014673,2]
[419886395,1775467842730,-429.76417009,0.00014673,2]
[419886396,1775467842744,-86497.4747907,0.00014678,2]
[419886397,1775467842758,-100057.5818821,0.00014678,2]
[419886398,1775467842772,-170.874576,0.00014678,2]
[419886399,1775467842785,-2903.51574,0.00014678,2]
[419886400,1775467842799,-170.874576,0.00014678,2]
[419886401,1775467842813,-2903.51574,0.00014678,2]
[419886402,1775467842827,-151.0,0.00014678,2]
[419886403,1775467842841,-170.874576,0.00014678,2]
[419886404,1775467842855,-151.0,0.00014678,2]
[419886405,1775467842870,-2903.51574,0.00014678,2]
[419886406,1775467842885,-170.874576,0.00014678,2]
[419886407,1775467842899,-151.0,0.00014678,2]
[419886408,1775467842913,-151.0,0.00014678,2]
[419886409,1775467842926,-151.0,0.00014678,2]
[419886410,1775467842940,-249.840512,0.00014678,2]
[419886411,1775467842953,-2903.51574,0.00014678,2]
[419886412,1775467842968,-151.0,0.00014678,2]
[419886413,1775467842981,-151.0,0.00014678,2]
[419886414,1775467842995,-1161.704083,0.00014678,2]
[419886415,1775467843008,-151.0,0.00014678,2]
[419886416,1775467843023,-151.0,0.00014678,2]
[419886417,1775467843037,-379.020627,0.00014678,2]
[419886418,1775467843052,-151.0,0.00014678,2]
[419886419,1775467843066,-151.0,0.00014678,2]
[419886420,1775467843080,-1161.704083,0.00014678,2]
[419886421,1775467843099,-894.194628,0.00014678,2]
[419886422,1775467843113,-151.0,0.00014678,2]
[419886423,1775467843127,-245.539821,0.00014678,2]
[419886424,1775467843142,-379.020627,0.00014678,2]
[419886425,1775467843155,-151.0,0.00014678,2]
[419886426,1775467843169,-275.726462,0.00014678,2]
[419886427,1775467843184,-1161.704083,0.00014678,2]
[419886428,1775467843199,-894.194628,0.00014678,2]
[419886429,1775467843213,-151.0,0.00014678,2]
[419886430,1775467843227,-379.020627,0.00014678,2]
[419886431,1775467843241,-260.22966,0.00014678,2]
[419886432,1775467843256,-275.726462,0.00014678,2]
[419886433,1775467843270,-1161.704083,0.00014678,2]
[419886434,1775467843284,-894.194628,0.00014678,2]
[419886435,1775467843298,-379.020627,0.00014678,2]
[419886436,1775467843313,-275.726462,0.00014678,2]
[419886437,1775467843328,-894.194628,0.00014678,2]
[419886438,1775467843342,-275.726462,0.00014678,2]
[419886439,1775467843356,-151.0,0.00014678,2]
[419886442,1775467843371,-237.619189,0.00014678,2]
[419886444,1775467843384,-208.170002,0.00014678,2]
[419886446,1775467843398,-237.619189,0.00014678,2]
[419886449,1775467843412,-208.170002,0.00014678,2]
[419886451,1775467843426,-151.0,0.00014678,2]
[419886453,1775467843440,-237.619189,0.00014678,2]
[419886454,1775467843454,-245.18533,0.00014678,2]
[419886455,1775467843468,-208.170002,0.00014678,2]
[419886456,1775467843482,-151.0,0.00014678,2]
[419886457,1775467843496,-237.619189,0.00014678,2]
[419886458,1775467843510,-245.18533,0.00014678,2]
[419886459,1775467843524,-208.170002,0.00014678,2]
[419886460,1775467843539,-245.18533,0.00014678,2]
[419886462,1775467843553,-428.020659,0.00014678,2]
[419886464,1775467843566,-151.0,0.00014678,2]
[419886466,1775467843580,-245.18533,0.00014678,2]
[419886469,1775467843594,-428.020659,0.00014678,2]
[419886471,1775467843608,-151.0,0.00014678,2]
[419886473,1775467843623,-428.020659,0.00014678,2]
[419886474,1775467843637,-151.0,0.00014678,2]
[419886475,1775467843651,-428.020659,0.00014678,2]
[419886476,1775467843665,-897.861331,0.00014678,2]
[419886478,1775467843678,-897.861331,0.00014678,2]
[419886479,1775467843692,-151.0,0.00014678,2]
[419886480,1775467843707,-897.861331,0.00014678,2]
[419886481,1775467843721,-151.0,0.00014678,2]
[419886482,1775467843734,-839.3425,0.00014678,2]
[419886483,1775467843748,-257.964773,0.00014678,2]
[419886484,1775467843761,-151.0,0.00014678,2]
[419886485,1775467843774,-897.861331,0.00014678,2]
[419886486,1775467843787,-151.0,0.00014678,2]
[419886487,1775467843801,-257.964773,0.00014678,2]
[419886488,1775467843815,-839.3425,0.00014678,2]
[419886489,1775467843829,-257.964773,0.00014678,2]
[419886490,1775467843843,-839.3425,0.00014678,2]
[419886491,1775467843856,-151.0,0.00014678,2]
[419886492,1775467843869,-231.592996,0.00014678,2]
[419886493,1775467843884,-839.3425,0.00014678,2]
[419886494,1775467843897,-257.964773,0.00014678,2]
[419886495,1775467843912,-973.389471,0.00014678,2]
[419886496,1775467843926,-151.0,0.00014678,2]
[419886497,1775467843939,-231.592996,0.00014678,2]
[419886498,1775467843953,-973.389471,0.00014678,2]
[419886499,1775467843968,-283.986928,0.00014678,2]
[419886500,1775467843981,-231.592996,0.00014678,2]
[419886501,1775467843994,-973.389471,0.00014678,2]
[419886502,1775467844009,-151.0,0.00014678,2]
[419886503,1775467844024,-1849.298231,0.00014678,2]
[419886504,1775467844037,-283.986928,0.00014678,2]
[419886505,1775467844050,-231.592996,0.00014678,2]
[419886506,1775467844065,-973.389471,0.00014678,2]
[419886507,1775467844078,-224.259029,0.00014678,2]
[419886508,1775467844093,-1849.298231,0.00014678,2]
[419886509,1775467844107,-641.371877,0.00014678,2]
[419886510,1775467844120,-151.0,0.00014678,2]
[419886511,1775467844133,-224.259029,0.00014678,2]
[419886512,1775467844147,-1849.298231,0.00014678,2]
[419886513,1775467844160,-641.371877,0.00014678,2]
[419886514,1775467844173,-151.0,0.00014678,2]
[419886515,1775467844186,-310.299956,0.00014678,2]
[419886516,1775467844199,-151.0,0.00014678,2]
[419886517,1775467844212,-224.259029,0.00014678,2]
[419886518,1775467844225,-641.371877,0.00014678,2]
[419886519,1775467844239,-729.37873,0.00014678,2]
[419886520,1775467844252,-310.299956,0.00014678,2]
[419886521,1775467844265,-151.0,0.00014678,2]
[419886522,1775467844278,-224.259029,0.00014678,2]
[419886523,1775467844291,-151.0,0.00014678,2]
[419886524,1775467844304,-641.371877,0.00014678,2]
[419886525,1775467844317,-729.37873,0.00014678,2]
[419886526,1775467844329,-283.986928,0.00014678,2]
[419886527,1775467844342,-1849.298231,0.00014678,2]
[419886528,1775467844356,-156.432067,0.00014678,2]
[419886529,1775467844369,-310.299956,0.00014678,2]
[419886530,1775467844382,-9062.314184,0.00014678,2]
[419886531,1775467844395,-1558.801213,0.00014678,2]
[419886532,1775467844409,-151.0,0.00014678,2]
[419886533,1775467844421,-278.996865,0.00014678,2]
[419886534,1775467844435,-283.986928,0.00014678,2]
[419886535,1775467844448,-1171.091271,0.00014678,2]
[419886536,1775467844460,-156.432067,0.00014678,2]
[419886537,1775467844474,-729.37873,0.00014678,2]
[419886538,1775467844488,-9062.314184,0.00014678,2]
[419886539,1775467844501,-1558.801213,0.00014678,2]
[419886540,1775467844515,-598.603024,0.00014678,2]